Document Date,Purchase Order No,Line Item No,Supplier ID,Supplier Name,Pro Class,Pro Class Description,Description of Goods (Purpose of expenditure look up),Service/Department   (SAP Hierarchy Position),Expense Area (cost centre desc),Net Order Value Over 5000.00 (line item value shown here),GL Code,Cost Centre/WBS
15/07/2021,ZAV694595,1,35,CBC Computer Systems Ltd,181800,Environmental Services Technical Equipment ,Furniture and Equipment,Corporate and Support Services,IT AVA Non - SLA,"13,125.00",400110,13001
15/07/2021,ZAV694595,2,35,CBC Computer Systems Ltd,181800,Environmental Services Technical Equipment ,Furniture and Equipment,Corporate and Support Services,IT AVA Non - SLA,682.50,400110,13001
27/07/2021,ZAV695060,1,9071,JTRS Ltd,181800,Environmental Services Technical Equipment ,Furniture and Equipment,Corporate and Support Services,IT AVA Non - SLA,"10,725.00",400110,13001
27/07/2021,ZAV695060,2,9071,JTRS Ltd,181800,Environmental Services Technical Equipment ,Furniture and Equipment,Corporate and Support Services,IT AVA Non - SLA,"2,685.00",400110,13001
27/07/2021,ZAV695060,3,9071,JTRS Ltd,181800,Environmental Services Technical Equipment ,Furniture and Equipment,Corporate and Support Services,IT AVA Non - SLA,864.00,400110,13001
29/09/2021,ZAV697512,1,12351,Getech,270000,Information Communication Technology  ,Information and Communications Technology,Corporate and Support Services,IT AVA Non - SLA,810.00,402001,13001
29/09/2021,ZAV697512,2,12351,Getech,270000,Information Communication Technology  ,Information and Communications Technology,Corporate and Support Services,IT AVA Non - SLA,"6,390.00",402001,13001
29/09/2021,ZAV697512,3,12351,Getech,270000,Information Communication Technology  ,Information and Communications Technology,Corporate and Support Services,IT AVA Non - SLA,450.00,402001,13001
29/09/2021,ZAV697512,4,12351,Getech,270000,Information Communication Technology  ,Information and Communications Technology,Corporate and Support Services,IT AVA Non - SLA,150.00,402001,13001
29/09/2021,ZAV697512,5,12351,Getech,270000,Information Communication Technology  ,Information and Communications Technology,Corporate and Support Services,IT AVA Non - SLA,846.00,402001,13001
05/07/2021,ZES694098,1,4272,Civica UK Ltd,270000,Information Communication Technology  ,Information and Communications Technology,Corporate and Support Services,Members Services,"4,110.00",402001,11111
05/07/2021,ZES694098,2,4272,Civica UK Ltd,270000,Information Communication Technology  ,Information and Communications Technology,Corporate and Support Services,Members Services,"2,055.00",402001,11111
05/07/2021,ZES694098,3,4272,Civica UK Ltd,270000,Information Communication Technology  ,Information and Communications Technology,Corporate and Support Services,Members Services,685.00,402001,11111
21/07/2021,ZES694837,1,544,Phoenix Software Ltd,270000,Information Communication Technology  ,Information and Communications Technology,Corporate and Support Services,IT Microsoft,"4,869.00",402001,13091
21/07/2021,ZES694837,2,544,Phoenix Software Ltd,270000,Information Communication Technology  ,Information and Communications Technology,Corporate and Support Services,IT Microsoft,"7,323.00",402001,13091
22/07/2021,ZES694884,1,7684,CDW Ltd,270000,Information Communication Technology  ,Information and Communications Technology,Corporate and Support Services,IT Infrastructure,"8,845.01",402010,11324
22/07/2021,ZES694884,2,7684,CDW Ltd,270000,Information Communication Technology  ,Information and Communications Technology,Corporate and Support Services,IT Infrastructure,"4,801.49",402010,11324
22/07/2021,ZES694884,3,7684,CDW Ltd,270000,Information Communication Technology  ,Information and Communications Technology,Corporate and Support Services,IT Infrastructure,266.16,402010,11324
22/07/2021,ZES694884,4,7684,CDW Ltd,270000,Information Communication Technology  ,Information and Communications Technology,Corporate and Support Services,IT Infrastructure,"1,418.50",402010,11324
22/07/2021,ZES694884,5,7684,CDW Ltd,270000,Information Communication Technology  ,Information and Communications Technology,Corporate and Support Services,IT Infrastructure,859.93,402010,11324
22/07/2021,ZES694884,6,7684,CDW Ltd,270000,Information Communication Technology  ,Information and Communications Technology,Corporate and Support Services,IT Infrastructure,"2,456.94",402010,11324
23/07/2021,ZES694931,1,544,Phoenix Software Ltd,270000,Information Communication Technology  ,Information and Communications Technology,Corporate and Support Services,IT Infrastructure,"5,970.67",402002,11324
23/07/2021,ZES694931,2,544,Phoenix Software Ltd,270000,Information Communication Technology  ,Information and Communications Technology,Corporate and Support Services,IT Infrastructure,"5,466.69",402002,11324
23/07/2021,ZES694931,3,544,Phoenix Software Ltd,270000,Information Communication Technology  ,Information and Communications Technology,Corporate and Support Services,IT Infrastructure,925.35,402002,11324
23/07/2021,ZES694931,4,544,Phoenix Software Ltd,270000,Information Communication Technology  ,Information and Communications Technology,Corporate and Support Services,IT Infrastructure,"2,864.16",402002,11324
23/07/2021,ZES694931,5,544,Phoenix Software Ltd,270000,Information Communication Technology  ,Information and Communications Technology,Corporate and Support Services,IT Infrastructure,"4,600.10",402002,11324
27/07/2021,ZES695019,1,12746,Camworth Limited,270000,Information Communication Technology  ,Information and Communications Technology,Corporate and Support Services,IT Infrastructure,"9,323.15",402002,11324
27/07/2021,ZES695019,2,12746,Camworth Limited,270000,Information Communication Technology  ,Information and Communications Technology,Corporate and Support Services,IT Infrastructure,"5,106.15",402002,11324
27/07/2021,ZES695019,3,12746,Camworth Limited,270000,Information Communication Technology  ,Information and Communications Technology,Corporate and Support Services,IT Infrastructure,906.42,402002,11324
27/07/2021,ZES695019,4,12746,Camworth Limited,270000,Information Communication Technology  ,Information and Communications Technology,Corporate and Support Services,IT Infrastructure,12.00,402002,11324
02/08/2021,ZES695262,1,14487,Bytes Software Services Ltd,270000,Information Communication Technology  ,Information and Communications Technology,Corporate and Support Services,IT School,"8,228.76",402001,11418
02/08/2021,ZES695262,2,14487,Bytes Software Services Ltd,270000,Information Communication Technology  ,Information and Communications Technology,Corporate and Support Services,IT School,868.43,402001,11418
16/08/2021,ZES695754,1,544,Phoenix Software Ltd,270000,Information Communication Technology  ,Information and Communications Technology,Corporate and Support Services,IT Microsoft,"4,869.00",402001,13091
16/08/2021,ZES695754,2,544,Phoenix Software Ltd,270000,Information Communication Technology  ,Information and Communications Technology,Corporate and Support Services,IT Microsoft,"7,323.00",402001,13091
27/08/2021,ZES696242,1,544,Phoenix Software Ltd,270000,Information Communication Technology  ,Information and Communications Technology,Corporate and Support Services,IT Microsoft,"141,492.12",402001,13091
27/08/2021,ZES696242,2,544,Phoenix Software Ltd,270000,Information Communication Technology  ,Information and Communications Technology,Corporate and Support Services,IT Microsoft,"1,162,213.50",402001,13091
30/09/2021,ZES697573,1,7684,CDW Ltd,270000,Information Communication Technology  ,Information and Communications Technology,Corporate and Support Services,IT Infrastructure,"15,112.14",402001,11324
30/09/2021,ZES697573,2,7684,CDW Ltd,270000,Information Communication Technology  ,Information and Communications Technology,Corporate and Support Services,IT Infrastructure,"49,539.84",402001,11324
30/09/2021,ZES697573,3,7684,CDW Ltd,270000,Information Communication Technology  ,Information and Communications Technology,Corporate and Support Services,IT Infrastructure,"1,294.36",402001,11324
30/09/2021,ZES697573,4,7684,CDW Ltd,270000,Information Communication Technology  ,Information and Communications Technology,Corporate and Support Services,IT Infrastructure,"6,235.16",402001,11324
09/09/2021,ZFC696673,1,1799,Stockport Homes,370000,Utilities   ,Utilities,Services to Place,SPB Operational Est.,"7,518.56",200550,11662
28/09/2021,ZFC697421,1,1799,Stockport Homes,999999,Fees and Charges,Fees and Charges,Services to Place,SPB Operational Est.,"13,791.00",401035,11662
30/09/2021,ZFC697545,1,3529,Totally Local Company Ltd,#N/A,#N/A,#N/A,Services to People,PH - COMF Grant,"1,679.83",400999,13097
30/09/2021,ZFC697545,2,3529,Totally Local Company Ltd,#N/A,#N/A,#N/A,Services to People,PH - COMF Grant,"1,693.34",400999,13097
30/09/2021,ZFC697545,3,3529,Totally Local Company Ltd,#N/A,#N/A,#N/A,Services to People,PH - COMF Grant,"1,458.46",400999,13097
30/09/2021,ZFC697545,4,3529,Totally Local Company Ltd,#N/A,#N/A,#N/A,Services to People,PH - COMF Grant,"1,453.40",400999,13097
30/09/2021,ZFC697545,5,3529,Totally Local Company Ltd,#N/A,#N/A,#N/A,Services to People,PH - COMF Grant,"1,385.80",400999,13097
30/09/2021,ZFC697545,6,3529,Totally Local Company Ltd,#N/A,#N/A,#N/A,Services to People,PH - COMF Grant,"1,385.80",400999,13097
30/09/2021,ZFC697545,7,3529,Totally Local Company Ltd,#N/A,#N/A,#N/A,Services to People,PH - COMF Grant,"1,402.70",400999,13097
25/08/2021,ZHS696116,1,12352,NJL Consulting Limited,390000,"Works - Construction, Repair & Maintenance  ",Capital Expenditure - Works,#N/A,#N/A,"5,500.00",200311,C.10916.002
13/09/2021,ZHS696811,1,13541,PRP Architects LLP.,390000,Supplies and services,Supplies and services,#N/A,#N/A,295.00,401600,C.10945.002
13/09/2021,ZHS696811,2,13541,PRP Architects LLP.,390000,Supplies and services,Supplies and services,#N/A,#N/A,"56,487.54",401600,C.10945.002
13/09/2021,ZHS696811,3,13541,PRP Architects LLP.,390000,Supplies and services,Supplies and services,#N/A,#N/A,"20,000.00",401600,C.10945.002
22/09/2021,ZHS697185,1,8324,TROWERS & HAMLINS LLP.,390000,"Works - Construction, Repair & Maintenance  ",Capital Expenditure - Works,#N/A,#N/A,"8,000.00",200311,C.11669.020
08/07/2021,ZMH694267,1,3529,Totally Local Company Ltd,999999,UNCLASSIFIED  ,MISCLASSIFIED? CHECK BEFORE PUBLICATION,Services to People,Moat House PRU,"5,430.24",100100,10313
20/07/2021,ZPC694775,1,4369,Pennine Care NHS Trust,310000,Healthcare  ,Third party payments - Public Sector,Services to People,Pendlebury Jigsaw,"6,788.14",500402,12709
20/07/2021,ZPC694778,1,4369,Pennine Care NHS Trust,310000,Healthcare  ,Third party payments - Public Sector,Services to People,Pendlebury Jigsaw,"62,000.00",500402,12709
21/07/2021,ZSA694854,1,1644,Tameside MBC,999999,Fees and Charges,Fees and Charges,Services to People,PH - COMF Grant,"47,522.00",402407,13097
26/08/2021,ZSA696187,1,6125,TIVIOT DALE METHODIST CHU,#N/A,#N/A,#N/A,Services to People,PH-Test & Trace,"40,000.00",200999,13080
15/09/2021,ZSA696970,1,7030,MANCHESTER CITY COUNCIL SHARED,999999,Fees and Charges,Fees and Charges,Services to People,PH-Programme Mngmt,"5,158.36",402407,12732
30/07/2021,ZTR695219,1,12445,Barbour Logic Ltd,270000,Information Communication Technology  ,Information and Communications Technology,Services to Place,Car Parks Admin,"9,448.00",402001,10005
30/07/2021,ZTR695219,2,12445,Barbour Logic Ltd,270000,Information Communication Technology  ,Information and Communications Technology,Services to Place,Car Parks Admin,"6,265.00",402001,10005
12/07/2021,ZZC694443,1,5555,MANCHESTER DEAF CENTRE LTD,261100,Human Resources Interpretation & Translation ,Professional Fees,Services to People,Incl - S.I.U - Perip,"5,576.02",401023,10307
12/07/2021,ZZC694455,1,14406,Onyine Ezeh,320000,Social Community Care Supplies & Services  ,Care Payments,Services to People,DP - Staffing,"8,670.00",530351,11484
14/07/2021,ZZC694558,1,3292,Reach Publishing Services Ltd,190000,Facilities & Management Services  ,Office Expenses,Services to People,RAA Adoption Count,"15,000.00",400700,12957
19/07/2021,ZZC694700,1,12298,One Education Ltd,999999,Fees and Charges,Fees and Charges,Services to People,RAA - ASF Grant,"5,000.00",401035,12968
19/07/2021,ZZC694702,1,14722,Yvonne Archer,999999,Fees and Charges,Fees and Charges,Services to People,RAA - ASF Grant,"9,020.92",401035,12968
23/07/2021,ZZC694959,1,13510,Children's Therapy Solutions,999999,Fees and Charges,Fees and Charges,Services to People,RAA - ASF Grant,"9,152.00",401035,12968
27/07/2021,ZZC695042,1,9190,Equilibrium and Enablement Ltd,999999,Fees and Charges,Fees and Charges,Services to People,RAA - ASF Grant,"5,550.00",401035,12968
27/07/2021,ZZC695043,1,12298,One Education Ltd,999999,Fees and Charges,Fees and Charges,Services to People,RAA - ASF Grant,"6,400.00",401035,12968
05/08/2021,ZZC695387,1,12775,Daydawn Therapeutic Services,999999,Fees and Charges,Fees and Charges,Services to People,RAA - ASF Grant,"5,880.00",401035,12968
05/08/2021,ZZC695388,1,12675,Tiptoes Child Therapy Services,999999,Fees and Charges,Fees and Charges,Services to People,RAA - ASF Grant,"5,000.00",401035,12968
05/08/2021,ZZC695389,1,12675,Tiptoes Child Therapy Services,999999,Fees and Charges,Fees and Charges,Services to People,RAA - ASF Grant,"10,590.00",401035,12968
09/08/2021,ZZC695469,1,12675,Tiptoes Child Therapy Services,999999,Fees and Charges,Fees and Charges,Services to People,RAA - ASF Grant,"11,290.00",401035,12968
09/08/2021,ZZC695470,1,2104,Central Manchester University,150000,Consultancy   ,Professional Fees,Services to People,RAA - Ctr Excellence,"32,887.00",401020,12967
10/08/2021,ZZC695539,1,5555,MANCHESTER DEAF CENTRE LTD,261100,Human Resources Interpretation & Translation ,Professional Fees,Services to People,Incl - S.I.U - Perip,"5,842.56",401023,10307
18/08/2021,ZZC695882,1,4771,Paritor Ltd,390000,"Works - Construction, Repair & Maintenance  ",Fees and Charges,Services to People,SI - Music Service,"5,262.54",401017,10417
24/08/2021,ZZC696040,1,14063,TSOM Group,150000,Consultancy   ,Professional Fees,Services to People,SHV CSC Locality Lea,"6,300.00",401020,11514
02/09/2021,ZZC696376,1,11190,Social Care Network Solutions,390000,"Works - Construction, Repair & Maintenance  ",Fees and Charges,Services to People,RAA Adoption Count,"29,597.50",401017,12957
03/09/2021,ZZC696437,1,14063,TSOM Group,320000,Social Community Care Supplies & Services  ,Care Payments,Services to People,DP - Staffing,"5,330.00",530351,11484
12/09/2021,ZZC696751,1,3799,Action for Children,320000,Social Community Care Supplies & Services  ,Care Payments,Services to People,RAA Adoption Count,"26,064.00",530306,12957
12/09/2021,ZZC696752,1,3799,Action for Children,320000,Social Community Care Supplies & Services  ,Care Payments,Services to People,RAA Adoption Count,"26,064.00",530306,12957
12/09/2021,ZZC696753,1,12675,Tiptoes Child Therapy Services,999999,Fees and Charges,Fees and Charges,Services to People,RAA - ASF Grant,"22,520.00",401035,12968
12/09/2021,ZZC696759,1,12675,Tiptoes Child Therapy Services,999999,Fees and Charges,Fees and Charges,Services to People,RAA - ASF Grant,"5,000.00",401035,12968
12/09/2021,ZZC696760,1,12675,Tiptoes Child Therapy Services,999999,Fees and Charges,Fees and Charges,Services to People,RAA - ASF Grant,"5,000.00",401035,12968
12/09/2021,ZZC696762,1,11242,Gateway Psychology Ltd,999999,Fees and Charges,Fees and Charges,Services to People,RAA - ASF Grant,"6,041.25",401035,12968
14/09/2021,ZZC696924,1,12298,One Education Ltd,999999,Fees and Charges,Fees and Charges,Services to People,RAA - ASF Grant,"9,050.00",401035,12968
20/09/2021,ZZC697093,1,12675,Tiptoes Child Therapy Services,150000,Consultancy   ,Professional Fees,Services to People,FP - Special Guardia,"12,663.84",401007,13012
20/09/2021,ZZC697093,2,12675,Tiptoes Child Therapy Services,150000,Consultancy   ,Professional Fees,Services to People,HTV CSC Locality Lea,"2,663.85",401007,11516
20/09/2021,ZZC697094,1,12675,Tiptoes Child Therapy Services,150000,Consultancy   ,Professional Fees,Services to People,FP - Special Guardia,"12,290.00",401007,13012
20/09/2021,ZZC697094,2,12675,Tiptoes Child Therapy Services,150000,Consultancy   ,Professional Fees,Services to People,HTV CSC Locality Lea,"2,290.00",401007,11516
30/09/2021,ZZC697527,1,12675,Tiptoes Child Therapy Services,999999,Fees and Charges,Fees and Charges,Services to People,RAA - ASF Grant,"8,420.00",401035,12968
30/09/2021,ZZC697538,1,8881,Family Futures CIC,999999,Fees and Charges,Fees and Charges,Services to People,RAA - ASF Grant,"26,887.50",401035,12968
30/09/2021,ZZC697556,1,12298,One Education Ltd,999999,Fees and Charges,Fees and Charges,Services to People,RAA - ASF Grant,"6,600.00",401035,12968
01/07/2021,ZZH693980,1,6067,Pitchworks Ltd,240000,Horticultural  ,Grounds Maintenance,Services to Place,Play,"7,128.00",202032,11267
01/07/2021,ZZH693985,1,7506,Angel Springs Ltd t/a Waterlog,210000,Furniture & Soft Furnishings  ,Furniture and Equipment,Services to Place,SPB Operational Est.,"6,252.73",400105,11662
01/07/2021,ZZH694012,1,10674,Ortoo Technologies Ltd,200000,Financial Services  ,Fees and Charges,Services to People,SI - School Govern,"10,100.00",402401,10755
02/07/2021,ZZH694035,1,10985,Broadstones School Ltd,261500,Human Resources Training & Conferences ,Fees and Charges,Services to People,SEN Independent Sch,"39,000.00",401024,10372
02/07/2021,ZZH694036,1,10985,Broadstones School Ltd,261500,Human Resources Training & Conferences ,Fees and Charges,Services to People,SEN Independent Sch,"39,000.00",401024,10372
02/07/2021,ZZH694054,1,14349,madlab,320000,Social Community Care Supplies & Services  ,Care Payments,Corporate and Support Services,POD Workforce Dev,"26,500.00",530356,11888
05/07/2021,ZZH694092,1,3529,Totally Local Company Ltd,240000,Horticultural  ,Grounds Maintenance,Services to Place,Policy-Rights Of Way,"5,000.00",202030,10088
05/07/2021,ZZH694093,1,3529,Totally Local Company Ltd,240000,Horticultural  ,Grounds Maintenance,Services to Place,Policy-Rights Of Way,"5,000.00",202030,10088
05/07/2021,ZZH694094,1,2479,JR Foy and Son Ltd,390000,"Works - Construction, Repair & Maintenance  ",Repairs and Maintenance,#N/A,#N/A,"20,978.00",200123,C.10387.111
05/07/2021,ZZH694102,1,9149,Public-i,270000,Information Communication Technology  ,Information and Communications Technology,Corporate and Support Services,Members Services,"7,166.40",402001,11111
05/07/2021,ZZH694117,1,2522,Donald Insall Associates,150000,Consultancy   ,Professional Fees,#N/A,#N/A,"12,800.00",401007,C.10906
05/07/2021,ZZH694119,1,3529,Totally Local Company Ltd,182000,Environmental Services Waste Management ,Waste Management,Services to Place,Food ContrsHouse Bag,"108,000.00",201804,10865
06/07/2021,ZZH694153,1,14706,C J Founds,150000,Consultancy   ,Professional Fees,Services to Place,Rural Broadband,"20,000.00",401007,12768
06/07/2021,ZZH694158,1,11851,SKILLS FOR CARE(non DHSC),999999,Fees and Charges,Fees and Charges,Services to People,Contracts SS Manager,"25,000.00",401035,11863
06/07/2021,ZZH694161,1,14536,W J North Limited,390000,Supplies and services,Supplies and services,#N/A,#N/A,"2,160.00",401600,C.01412.203
06/07/2021,ZZH694161,2,14536,W J North Limited,390000,Supplies and services,Supplies and services,#N/A,#N/A,"2,160.00",401600,C.01412.203
06/07/2021,ZZH694161,3,14536,W J North Limited,390000,Supplies and services,Supplies and services,#N/A,#N/A,"2,160.00",401600,C.01412.203
06/07/2021,ZZH694161,4,14536,W J North Limited,390000,Supplies and services,Supplies and services,#N/A,#N/A,984.00,401600,C.01412.203
06/07/2021,ZZH694161,5,14536,W J North Limited,390000,Supplies and services,Supplies and services,#N/A,#N/A,984.00,401600,C.01412.203
06/07/2021,ZZH694162,1,6967,Wilde Consultants Ltd,390000,Supplies and services,Supplies and services,#N/A,#N/A,"77,364.00",401600,C.00718.203
07/07/2021,ZZH694181,1,13414,Horizon Care & Education Group,261500,Human Resources Training & Conferences ,Fees and Charges,Services to People,SEN Independent Sch,"66,750.00",401024,10372
07/07/2021,ZZH694185,1,13860,Howard Lynn Property Ltd,261400,Human Resources Temporary & Agency Staff ,Agency Staff,Services to Place,Property Client Acct,"6,930.00",100290,12328
07/07/2021,ZZH694203,1,1722,The Together Trust Centre,261500,Human Resources Training & Conferences ,Fees and Charges,Services to People,SEN Independent Sch,"29,250.00",401024,10372
07/07/2021,ZZH694204,1,1722,The Together Trust Centre,261500,Human Resources Training & Conferences ,Fees and Charges,Services to People,SEN Independent Sch,"32,846.09",401024,10372
07/07/2021,ZZH694224,1,10289,STOCKPORT SAMARITANS,320000,Social Community Care Supplies & Services  ,Third party payments - Private/Voluntary Sector,Services to People,PH-Mental Wellbeing,"10,000.00",500530,12734
07/07/2021,ZZH694226,1,9715,NHS Stockport CCG,260000,Human Resources  ,Other Payments,Services to People,Proactive Care,"544,809.64",100304,12829
07/07/2021,ZZH694228,1,9715,NHS Stockport CCG,260000,Human Resources  ,Other Payments,Services to People,Proactive Care,"334,515.77",100304,12829
07/07/2021,ZZH694229,1,14699,Genesis Advance Limited,#N/A,#N/A,#N/A,Services to People,Infection Control T3,"5,425.00",400999,13121
07/07/2021,ZZH694229,2,14699,Genesis Advance Limited,#N/A,#N/A,#N/A,Services to People,Infection Control T3,"5,950.00",400999,13121
08/07/2021,ZZH694277,1,3529,Totally Local Company Ltd,390000,"Works - Construction, Repair & Maintenance  ",Capital Expenditure - Works,#N/A,#N/A,"6,132.07",200304,C.01389.203
08/07/2021,ZZH694279,1,8106,Tarmac Trading Ltd,390000,Supplies and services,Supplies and services,#N/A,#N/A,"9,823.72",401600,C.01412.203
08/07/2021,ZZH694279,2,8106,Tarmac Trading Ltd,390000,Supplies and services,Supplies and services,#N/A,#N/A,"22,436.61",401600,C.01412.203
08/07/2021,ZZH694279,3,8106,Tarmac Trading Ltd,390000,Supplies and services,Supplies and services,#N/A,#N/A,"17,069.08",401600,C.01412.203
08/07/2021,ZZH694279,4,8106,Tarmac Trading Ltd,390000,Supplies and services,Supplies and services,#N/A,#N/A,"7,326.40",401600,C.01412.203
08/07/2021,ZZH694279,5,8106,Tarmac Trading Ltd,390000,Supplies and services,Supplies and services,#N/A,#N/A,"7,621.18",401600,C.01412.203
08/07/2021,ZZH694282,1,8106,Tarmac Trading Ltd,390000,Supplies and services,Supplies and services,#N/A,#N/A,"36,052.67",401600,C.01365.201
08/07/2021,ZZH694286,1,3529,Totally Local Company Ltd,240000,Horticultural  ,Grounds Maintenance,Services to Place,Policy-Rights Of Way,"20,000.00",202030,10088
08/07/2021,ZZH694287,1,3529,Totally Local Company Ltd,240000,Horticultural  ,Grounds Maintenance,Services to Place,Policy-Rights Of Way,"15,000.00",202030,10088
08/07/2021,ZZH694288,1,82,Marwood Electrical Company Ltd,390000,"Works - Construction, Repair & Maintenance  ",Capital Expenditure - Works,#N/A,#N/A,"27,581.25",200304,C.01197.203
08/07/2021,ZZH694288,2,82,Marwood Electrical Company Ltd,390000,"Works - Construction, Repair & Maintenance  ",Capital Expenditure - Works,#N/A,#N/A,"73,550.00",200304,C.01197.203
08/07/2021,ZZH694288,3,82,Marwood Electrical Company Ltd,390000,"Works - Construction, Repair & Maintenance  ",Capital Expenditure - Works,#N/A,#N/A,"2,392.89",200304,C.01197.203
08/07/2021,ZZH694288,4,82,Marwood Electrical Company Ltd,390000,"Works - Construction, Repair & Maintenance  ",Capital Expenditure - Works,#N/A,#N/A,"7,970.40",200304,C.01197.203
08/07/2021,ZZH694288,5,82,Marwood Electrical Company Ltd,390000,"Works - Construction, Repair & Maintenance  ",Capital Expenditure - Works,#N/A,#N/A,"1,494.45",200304,C.01197.203
08/07/2021,ZZH694288,6,82,Marwood Electrical Company Ltd,390000,"Works - Construction, Repair & Maintenance  ",Capital Expenditure - Works,#N/A,#N/A,"1,992.60",200304,C.01197.203
08/07/2021,ZZH694288,7,82,Marwood Electrical Company Ltd,390000,"Works - Construction, Repair & Maintenance  ",Capital Expenditure - Works,#N/A,#N/A,649.75,200304,C.01197.203
08/07/2021,ZZH694288,8,82,Marwood Electrical Company Ltd,390000,"Works - Construction, Repair & Maintenance  ",Capital Expenditure - Works,#N/A,#N/A,"18,842.75",200304,C.01197.203
08/07/2021,ZZH694299,1,2438,J Greenwood (Builders) Ltd,391114,"Works - Construction, Repair & Maintenance Buildings Surveys",Capital Expenditure - Fees,#N/A,#N/A,"202,448.90",200316,C.10425.242
08/07/2021,ZZH694300,1,5131,FUTURE DESIGN CONSULTANTS,150000,Consultancy   ,Professional Fees,Services to Place,Investing in Growth,"90,000.00",401007,10102
08/07/2021,ZZH694306,1,1799,Stockport Homes,#N/A,#N/A,#N/A,Services to People,COVID Winter Grant,"9,000.00",500999,13096
08/07/2021,ZZH694312,1,2927,XMA Ltd,270000,Information Communication Technology  ,Information and Communications Technology,Services to People,LD Assessment Team,"6,366.40",402001,11823
08/07/2021,ZZH694312,2,2927,XMA Ltd,270000,Information Communication Technology  ,Information and Communications Technology,Services to People,LD Assessment Team,35.00,402001,11823
08/07/2021,ZZH694312,3,2927,XMA Ltd,270000,Information Communication Technology  ,Information and Communications Technology,Services to People,LD Assessment Team,35.00,402001,11823
08/07/2021,ZZH694312,4,2927,XMA Ltd,270000,Information Communication Technology  ,Information and Communications Technology,Services to People,LD Assessment Team,122.20,402001,11823
09/07/2021,ZZH694344,1,13334,The ExcluSec Group Ltd t/as Ex,390000,"Works - Construction, Repair & Maintenance  ",Repairs and Maintenance,Corporate and Support Services,Town Hall Events,"5,128.73",200160,11375
09/07/2021,ZZH694368,1,6748,GEORGE COX & SONS LTD,390000,"Works - Construction, Repair & Maintenance  ",Capital Expenditure - Works,#N/A,#N/A,"28,403.40",200304,C.10545.193
12/07/2021,ZZH694393,1,10216,Cromwell Polythene Limited,390000,"Works - Construction, Repair & Maintenance  ",Capital Expenditure - Works,Services to Place,House sacks box bags,"20,110.98",200304,10868
12/07/2021,ZZH694395,1,683,AECOM Limited,150000,Consultancy   ,Professional Fees,#N/A,#N/A,"24,741.70",401007,C.00658
12/07/2021,ZZH694399,1,6748,GEORGE COX & SONS LTD,390000,"Works - Construction, Repair & Maintenance  ",Capital Expenditure - Works,#N/A,#N/A,"28,403.40",200304,C.10545.193
12/07/2021,ZZH694436,1,14574,2 CQR Ltd,181800,Environmental Services Technical Equipment ,Furniture and Equipment,Corporate and Support Services,Public Libraries Gen,"21,990.00",400110,11329
13/07/2021,ZZH694474,1,5214,WSP GROUP PLC,150000,Consultancy   ,Professional Fees,Services to Place,Design Frmwk Staff,"48,125.19",401020,11965
13/07/2021,ZZH694482,1,9662,More Play more Often,290000,Arts & Leisure Services  ,Publicity and Promotion,Services to People,DP -  Aiming High,"25,558.75",401801,11432
13/07/2021,ZZH694492,1,3529,Totally Local Company Ltd,391114,"Works - Construction, Repair & Maintenance Buildings Surveys",Capital Expenditure - Fees,#N/A,#N/A,"169,382.72",200316,C.01389.203
14/07/2021,ZZH694525,1,7030,MANCHESTER CITY COUNCIL SHARED,202100,Financial Services Subscriptions ,Third party payments - Public Sector,Corporate and Support Services,Electoral Registn,"6,381.61",500305,11102
14/07/2021,ZZH694551,1,12193,Greater Manchester Combined Au,#N/A,#N/A,#N/A,Corporate and Support Services,AGMA & LA Subs,"17,490.00",400999,10979
14/07/2021,ZZH694553,1,12193,Greater Manchester Combined Au,202100,Financial Services Subscriptions ,Third party payments - Public Sector,Corporate and Support Services,AGMA & LA Subs,"878,000.00",500305,10979
16/07/2021,ZZH694630,1,6170,Greater Manchester TreeStation,390000,Supplies and services,Supplies and services,Services to Place,Land Dev-Werneth Os,"7,400.00",401600,11280
16/07/2021,ZZH694631,1,6170,Greater Manchester TreeStation,390000,Supplies and services,Supplies and services,Services to Place,Land Proj-Chadkirk,"7,400.00",401600,11225
16/07/2021,ZZH694677,1,7025,CBRE Limited,150000,Consultancy   ,Professional Fees,Services to Place,Town deal Cheadle,"9,113.00",401020,13057
16/07/2021,ZZH694689,1,14724,Project Plan Services,150000,Consultancy   ,Professional Fees,Corporate and Support Services,Strategy & Design,"12,500.00",401007,12642
16/07/2021,ZZH694689,2,14724,Project Plan Services,150000,Consultancy   ,Professional Fees,Corporate and Support Services,Strategy & Design,"6,500.00",401007,12642
16/07/2021,ZZH694689,3,14724,Project Plan Services,150000,Consultancy   ,Professional Fees,Corporate and Support Services,Strategy & Design,"18,750.00",401007,12642
16/07/2021,ZZH694689,4,14724,Project Plan Services,150000,Consultancy   ,Professional Fees,Corporate and Support Services,Strategy & Design,"2,500.00",401007,12642
19/07/2021,ZZH694715,1,35,CBC Computer Systems Ltd,270000,Information Communication Technology  ,Information and Communications Technology,Services to People,TM REaCH,390.00,402001,12714
19/07/2021,ZZH694715,2,35,CBC Computer Systems Ltd,270000,Information Communication Technology  ,Information and Communications Technology,Services to People,TM REaCH,592.35,402001,12714
19/07/2021,ZZH694715,3,35,CBC Computer Systems Ltd,270000,Information Communication Technology  ,Information and Communications Technology,Services to People,TM REaCH,"4,700.00",402001,12714
19/07/2021,ZZH694730,1,14011,Baltimore Consulting,260000,Human Resources  ,Other Payments,Services to People,LDSS SS Manager,"8,343.60",100304,13070
20/07/2021,ZZH694768,1,6748,GEORGE COX & SONS LTD,#N/A,#N/A,#N/A,Services to Place,Investing in Growth,"11,065.38",400999,10102
20/07/2021,ZZH694785,1,544,Phoenix Software Ltd,270000,Information Communication Technology  ,Information and Communications Technology,Corporate and Support Services,Strategy & Design,"2,451.06",402010,12642
20/07/2021,ZZH694785,2,544,Phoenix Software Ltd,270000,Information Communication Technology  ,Information and Communications Technology,Corporate and Support Services,POD Communications,817.02,402010,11323
20/07/2021,ZZH694785,3,544,Phoenix Software Ltd,270000,Information Communication Technology  ,Information and Communications Technology,Services to Place,Property Client Acct,817.02,402010,12328
20/07/2021,ZZH694785,4,544,Phoenix Software Ltd,270000,Information Communication Technology  ,Information and Communications Technology,Corporate and Support Services,Strategy & Design,"2,712.12",402010,12642
20/07/2021,ZZH694785,5,544,Phoenix Software Ltd,270000,Information Communication Technology  ,Information and Communications Technology,Corporate and Support Services,Strategy & Design,958.80,402010,12642
20/07/2021,ZZH694785,6,544,Phoenix Software Ltd,270000,Information Communication Technology  ,Information and Communications Technology,Corporate and Support Services,Strategy & Design,295.94,402010,12642
20/07/2021,ZZH694785,7,544,Phoenix Software Ltd,181800,Environmental Services Technical Equipment ,Furniture and Equipment,Corporate and Support Services,POD Communications,430.49,400110,11323
20/07/2021,ZZH694793,1,6967,Wilde Consultants Ltd,390000,Supplies and services,Supplies and services,#N/A,#N/A,"5,700.00",401600,C.00718.203
20/07/2021,ZZH694795,1,2025,BT Plc (Openreach),390000,"Works - Construction, Repair & Maintenance  ",Capital Expenditure - Works,#N/A,#N/A,"9,495.33",200304,C.01392.203
20/07/2021,ZZH694814,1,14034,Oxygen Finance Limited,999999,Fees and Charges,Fees and Charges,Corporate and Support Services,U-Misc Fin-Corp Mang,"5,000.00",401035,10971
21/07/2021,ZZH694829,1,1572,Theraposture Ltd,181800,Environmental Services Technical Equipment ,Furniture and Equipment,Services to People,SEN Equipment,"4,725.00",400110,10324
21/07/2021,ZZH694829,2,1572,Theraposture Ltd,181800,Environmental Services Technical Equipment ,Furniture and Equipment,Services to People,SEN Equipment,180.00,400110,10324
21/07/2021,ZZH694829,3,1572,Theraposture Ltd,181800,Environmental Services Technical Equipment ,Furniture and Equipment,Services to People,SEN Equipment,445.50,400110,10324
21/07/2021,ZZH694829,4,1572,Theraposture Ltd,181800,Environmental Services Technical Equipment ,Furniture and Equipment,Services to People,SEN Equipment,756.00,400110,10324
21/07/2021,ZZH694829,5,1572,Theraposture Ltd,181800,Environmental Services Technical Equipment ,Furniture and Equipment,Services to People,SEN Equipment,486.00,400110,10324
21/07/2021,ZZH694829,6,1572,Theraposture Ltd,181800,Environmental Services Technical Equipment ,Furniture and Equipment,Services to People,SEN Equipment,125.00,400110,10324
21/07/2021,ZZH694829,7,1572,Theraposture Ltd,181800,Environmental Services Technical Equipment ,Furniture and Equipment,Services to People,SEN Equipment,185.00,400110,10324
21/07/2021,ZZH694830,1,11466,High Peak School Ltd,261500,Human Resources Training & Conferences ,Fees and Charges,Services to People,SEN Independent Sch,"40,091.64",401024,10372
21/07/2021,ZZH694831,1,4083,Hulme Hall School,261500,Human Resources Training & Conferences ,Fees and Charges,Services to People,SEN Specific support,"16,481.00",401024,10300
22/07/2021,ZZH694889,1,3707,Salford City Council/Finance,999999,Third party payments - Public Sector,Third party payments - Public Sector,Services to People,Adults Management,"5,799.40",500303,11873
22/07/2021,ZZH694894,1,10349,InterWorks Europe Limited,270000,Information Communication Technology  ,Information and Communications Technology,Corporate and Support Services,Business Intelligenc,"14,730.00",402001,11872
22/07/2021,ZZH694901,1,12193,Greater Manchester Combined Au,170000,Education  ,Third party payments - Public Sector,Services to People,OLA pupils,"8,347.91",500304,10371
22/07/2021,ZZH694905,1,3529,Totally Local Company Ltd,390000,Supplies and services,Supplies and services,#N/A,#N/A,"31,804.88",401600,C.01318.203
22/07/2021,ZZH694907,1,3529,Totally Local Company Ltd,270000,Information Communication Technology  ,Information and Communications Technology,#N/A,#N/A,"22,999.76",402001,C.01327.201
23/07/2021,ZZH694948,1,2451,Manchester and Cheshire Constr,390000,"Works - Construction, Repair & Maintenance  ",Repairs and Maintenance,#N/A,#N/A,"692,684.01",200123,C.11502.113
26/07/2021,ZZH694969,1,7025,CBRE Limited,150000,Consultancy   ,Professional Fees,Services to Place,Town Centre Devt Tea,"6,000.00",401020,10072
26/07/2021,ZZH694970,1,7025,CBRE Limited,150000,Consultancy   ,Professional Fees,Services to Place,Town Centre Devt Tea,"9,570.00",401020,10072
26/07/2021,ZZH694996,1,12708,Little Giggles Private Day Nur,321115,Social Community Care Supplies & Services Children Childcare Services,Expenses and Allowances,Services to People,Early Years SEN,"10,513.58",402210,12942
26/07/2021,ZZH694997,1,10780,Permicoat Ltd,390000,"Works - Construction, Repair & Maintenance  ",Repairs and Maintenance,#N/A,#N/A,"167,071.71",200123,C.11508.001
26/07/2021,ZZH695012,1,14669,Sapphire Utility Solutions Ltd,390000,Supplies and services,Supplies and services,#N/A,#N/A,"5,700.00",401600,C.00718.203
26/07/2021,ZZH695013,1,6967,Wilde Consultants Ltd,150000,Consultancy   ,Professional Fees,#N/A,#N/A,"70,000.00",401007,C.01249.201
27/07/2021,ZZH695030,1,2438,J Greenwood (Builders) Ltd,390000,"Works - Construction, Repair & Maintenance  ",Repairs and Maintenance,#N/A,#N/A,"594,378.00",200123,C.10310.124
27/07/2021,ZZH695031,1,2438,J Greenwood (Builders) Ltd,390000,"Works - Construction, Repair & Maintenance  ",Repairs and Maintenance,#N/A,#N/A,"680,676.00",200123,C.10326.229
27/07/2021,ZZH695038,1,3529,Totally Local Company Ltd,290000,Arts & Leisure Services  ,Publicity and Promotion,Services to Place,Borough Festive Ligh,"33,338.80",401801,12654
27/07/2021,ZZH695039,1,3529,Totally Local Company Ltd,290000,Arts & Leisure Services  ,Publicity and Promotion,Services to Place,Borough Festive Ligh,"59,874.00",401801,12654
28/07/2021,ZZH695088,1,7820,GMCA - GMUTC,390000,Supplies and services,Supplies and services,#N/A,#N/A,"23,500.00",401600,C.01318.203
28/07/2021,ZZH695089,1,6748,GEORGE COX & SONS LTD,390000,Supplies and services,Supplies and services,Services to Place,Highway Structs R+R,"10,945.32",401600,11975
28/07/2021,ZZH695092,1,8236,STOCKPORT WITHOUT ABUSE,999999,Fees and Charges,Fees and Charges,Services to People,Domestic Abuse Bill,"8,000.00",401035,13111
28/07/2021,ZZH695093,1,6049,"TLC: Talk, Listen, Change",390000,Supplies and services,Supplies and services,Services to People,Domestic Abuse,"170,783.00",401600,12852
28/07/2021,ZZH695111,1,10506,G2 Recruitment Solutions Limit,261400,Human Resources Temporary & Agency Staff ,Agency Staff,Corporate and Support Services,POD Health & Safety,"5,548.20",100290,11122
28/07/2021,ZZH695113,1,6748,GEORGE COX & SONS LTD,390000,Supplies and services,Supplies and services,#N/A,#N/A,"441,040.35",401600,C.01318.203
28/07/2021,ZZH695122,1,12269,PENARTH GROUP,261500,Human Resources Training & Conferences ,Fees and Charges,Services to People,SEN Independent Sch,"29,489.79",401024,10372
28/07/2021,ZZH695123,1,12959,Apollo Home Healtcare,310000,Healthcare  ,Third party payments - Public Sector,Services to People,SEN Specific support,"15,960.00",500402,10300
29/07/2021,ZZH695163,1,13624,Charles Andrews Ltd,390000,"Works - Construction, Repair & Maintenance  ",Repairs and Maintenance,#N/A,#N/A,"19,950.00",200123,C.11508.004
29/07/2021,ZZH695184,1,6748,GEORGE COX & SONS LTD,390000,Supplies and services,Supplies and services,Services to Place,Highway Structs R+R,"7,475.24",401600,11975
29/07/2021,ZZH695194,1,14742,P P O'Connor,390000,"Works - Construction, Repair & Maintenance  ",Repairs and Maintenance,#N/A,#N/A,"151,080.57",200123,C.10423.184
30/07/2021,ZZH695206,1,11861,WARGRAVE HOUSE SCHOOL,320000,Social Community Care Supplies & Services  ,Third party payments - Private/Voluntary Sector,Services to People,Top-up Fund Post 16,"67,823.00",402403,12724
30/07/2021,ZZH695220,1,7296,Allpay-Net Ltd,999999,Financial Services,Bank Charges,Corporate and Support Services,U-Misc Fin-Corp Mang,"225,000.00",601403,10971
02/08/2021,ZZH695270,1,930,PHS Group Plc,130000,Cleaning & Janitorial  ,Cleaning,Services to Place,SPB Operational Est.,"5,000.00",201607,11662
02/08/2021,ZZH695270,2,930,PHS Group Plc,130000,Cleaning & Janitorial  ,Cleaning,Services to Place,SPB Operational Est.,"7,500.00",201607,11662
02/08/2021,ZZH695270,3,930,PHS Group Plc,130000,Cleaning & Janitorial  ,Cleaning,Services to Place,SPB Operational Est.,"1,700.00",201607,11662
03/08/2021,ZZH695284,1,6067,Pitchworks Ltd,240000,Horticultural  ,Grounds Maintenance,Services to Place,Play,"7,128.00",202032,11267
03/08/2021,ZZH695287,1,8163,Starting Point Community Learn,261500,Human Resources Training & Conferences ,Fees and Charges,Services to Place,Contin Educ Service,"5,000.00",401024,10511
03/08/2021,ZZH695296,1,8106,Tarmac Trading Ltd,390000,Supplies and services,Supplies and services,#N/A,#N/A,"30,514.91",401600,C.01317.203
03/08/2021,ZZH695297,1,3529,Totally Local Company Ltd,390000,Supplies and services,Supplies and services,#N/A,#N/A,"15,388.39",401600,C.00718.203
03/08/2021,ZZH695325,1,10630,Carebase,181800,Environmental Services Technical Equipment ,Furniture and Equipment,Services to People,SEN Equipment,"7,580.00",400110,10324
03/08/2021,ZZH695337,1,5214,WSP GROUP PLC,390000,Supplies and services,Supplies and services,#N/A,#N/A,"9,743.75",401600,C.01468.201
04/08/2021,ZZH695368,1,780,J A Jones + Sons,240000,Horticultural  ,Grounds Maintenance,Services to Place,Land Dev-Werneth Os,"10,598.40",202035,11280
04/08/2021,ZZH695368,2,780,J A Jones + Sons,240000,Horticultural  ,Grounds Maintenance,Services to Place,Land Dev-Werneth Os,372.60,202035,11280
06/08/2021,ZZH695446,1,7820,GMCA - GMUTC,390000,Supplies and services,Supplies and services,#N/A,#N/A,"23,500.00",401600,C.01318.203
09/08/2021,ZZH695472,1,14756,Gala Tents Ltd,#N/A,#N/A,#N/A,Services to Place,Investing in Growth,"6,249.58",400999,10102
09/08/2021,ZZH695478,1,12222,Storm Enviromental Ltd,182020,Environmental Services Waste Management,Waste Management Equipment,Services to Place,Bulk Container,"14,197.50",400401,10883
09/08/2021,ZZH695482,1,13495,Pell Frischmann Consultants Lt,150000,Consultancy   ,Professional Fees,#N/A,#N/A,"68,640.00",401007,C.01317.203
09/08/2021,ZZH695483,1,13495,Pell Frischmann Consultants Lt,150000,Consultancy   ,Professional Fees,#N/A,#N/A,"7,529.38",401007,C.10932
09/08/2021,ZZH695496,1,3529,Totally Local Company Ltd,#N/A,#N/A,#N/A,Services to Place,Investing in Growth,"175,000.00",400999,10102
09/08/2021,ZZH695507,1,6967,Wilde Consultants Ltd,150000,Consultancy   ,Professional Fees,#N/A,#N/A,"19,080.00",401020,C.01177
10/08/2021,ZZH695537,1,13860,Howard Lynn Property Ltd,261400,Human Resources Temporary & Agency Staff ,Agency Staff,Services to Place,Property Client Acct,"6,930.00",100290,12328
10/08/2021,ZZH695543,1,3529,Totally Local Company Ltd,270000,Information Communication Technology  ,Information and Communications Technology,#N/A,#N/A,"14,970.00",402001,C.01229.201
11/08/2021,ZZH695577,1,12961,Talking Mats Ltd,260000,Human Resources  ,Staff Training,Services to People,CADA grant,"3,000.00",102020,13032
11/08/2021,ZZH695577,2,12961,Talking Mats Ltd,260000,Human Resources  ,Staff Training,Services to People,CADA grant,"2,035.00",102020,13032
11/08/2021,ZZH695577,3,12961,Talking Mats Ltd,260000,Human Resources  ,Staff Training,Services to People,CADA grant,20.00,102020,13032
11/08/2021,ZZH695580,1,3529,Totally Local Company Ltd,390000,"Works - Construction, Repair & Maintenance  ",Capital Expenditure - Works,#N/A,#N/A,"24,239.98",200304,C.01312.201
11/08/2021,ZZH695581,1,14349,madlab,320000,Social Community Care Supplies & Services  ,Care Payments,Corporate and Support Services,POD Workforce Dev,"36,750.00",530356,11888
11/08/2021,ZZH695617,1,7915,Seddon Construction Ltd,390000,"Works - Construction, Repair & Maintenance  ",Repairs and Maintenance,#N/A,#N/A,"22,367.54",200123,C.10323.110
12/08/2021,ZZH695619,1,6748,GEORGE COX & SONS LTD,390000,Supplies and services,Supplies and services,#N/A,#N/A,"476,260.27",401600,C.01324.203
12/08/2021,ZZH695631,1,14424,Just One Recruitment and Train,320000,Social Community Care Supplies & Services  ,Care Payments,Services to People,DP - Respite,"10,605.57",530335,11513
12/08/2021,ZZH695632,1,11897,SENSE CAS FINANCE TEAM,320000,Social Community Care Supplies & Services  ,Care Payments,Services to People,DP - Respite,"5,009.52",530358,11513
12/08/2021,ZZH695633,1,3284,Stockport CP Ltd t/a Supportab,320000,Social Community Care Supplies & Services  ,Care Payments,Services to People,DP - Respite,"6,395.32",530335,11513
12/08/2021,ZZH695641,1,7648,Kier Construction Limited,390000,"Works - Construction, Repair & Maintenance  ",Repairs and Maintenance,#N/A,#N/A,"15,492,506.11",200123,C.10423.184
12/08/2021,ZZH695661,1,3529,Totally Local Company Ltd,390000,"Works - Construction, Repair & Maintenance  ",Capital Expenditure - Works,#N/A,#N/A,"5,589.88",200304,C.01071.203
12/08/2021,ZZH695664,1,3529,Totally Local Company Ltd,390000,Supplies and services,Supplies and services,#N/A,#N/A,"13,269.38",401600,C.00718.203
12/08/2021,ZZH695676,1,815,University of Manchester,391114,"Works - Construction, Repair & Maintenance Buildings Surveys",Capital Expenditure - Fees,Services to Place,Transport Strategy,"8,558.00",200316,13060
16/08/2021,ZZH695726,1,3529,Totally Local Company Ltd,390000,Supplies and services,Supplies and services,Services to Place,Nature-Arboriculture,"7,040.00",401600,11281
16/08/2021,ZZH695733,1,3529,Totally Local Company Ltd,390000,"Works - Construction, Repair & Maintenance  ",Capital Expenditure - Works,#N/A,#N/A,"7,421.89",200304,C.10905
16/08/2021,ZZH695735,1,13223,A Pacini Ltd,261400,Human Resources Temporary & Agency Staff ,Agency Staff,Services to Place,Property Client Acct,"5,250.00",100290,12328
16/08/2021,ZZH695736,1,1816,Seashell Trust,320000,Social Community Care Supplies & Services  ,Care Payments,Services to People,DP - Respite,"7,752.74",530335,11513
16/08/2021,ZZH695761,1,4272,Civica UK Ltd,181800,Environmental Services Technical Equipment ,Furniture and Equipment,Corporate and Support Services,Public Libraries Gen,"26,000.00",400111,11329
16/08/2021,ZZH695768,1,4105,QA Ltd,261500,Human Resources Training & Conferences ,Fees and Charges,Corporate and Support Services,POD Workforce Dev,"5,000.00",401024,11888
16/08/2021,ZZH695771,1,2025,BT Plc (Openreach),390000,Supplies and services,Supplies and services,#N/A,#N/A,"69,463.75",401600,C.00880.203
16/08/2021,ZZH695772,1,2025,BT Plc (Openreach),390000,Supplies and services,Supplies and services,#N/A,#N/A,"26,408.81",401600,C.00880.203
17/08/2021,ZZH695786,1,12401,NSL Ltd,381600,Vehicle Management Hire/Leasing ,Leasing /Transport Hire,Services to Place,Moving Traffic,"49,920.00",300304,13014
18/08/2021,ZZH695861,1,12266,Vision Beyond Autism CIC,320000,Social Community Care Supplies & Services  ,Third party payments - Private/Voluntary Sector,Services to People,Top-up Fund Post 16,"27,736.14",402403,12724
19/08/2021,ZZH695915,1,216,Manchester City Council,320000,Social Community Care Supplies & Services  ,Third party payments - Private/Voluntary Sector,Corporate and Support Services,Civil Resilience,"52,380.00",500530,11103
19/08/2021,ZZH695922,1,11715,CBRE,390000,"Works - Construction, Repair & Maintenance  ",Repairs and Maintenance,Services to Place,Property Client Acct,"6,500.00",200123,12328
20/08/2021,ZZH695945,1,10363,Gala Lights Ltd,290000,Arts & Leisure Services  ,Publicity and Promotion,Services to Place,Borough Festive Ligh,"29,600.00",401801,12654
20/08/2021,ZZH695946,1,1642,Blachere Illumination UK Ltd,290000,Arts & Leisure Services  ,Publicity and Promotion,Services to Place,Borough Festive Ligh,"11,221.70",401801,12654
20/08/2021,ZZH695947,1,1642,Blachere Illumination UK Ltd,290000,Arts & Leisure Services  ,Publicity and Promotion,Services to Place,Borough Festive Ligh,"68,332.57",401801,12654
23/08/2021,ZZH696034,1,13495,Pell Frischmann Consultants Lt,390000,Supplies and services,Supplies and services,#N/A,#N/A,"99,523.20",401600,C.01467.201
23/08/2021,ZZH696035,1,3529,Totally Local Company Ltd,280000,Legal Services  ,Legal Fees,#N/A,#N/A,"8,535.00",401016,C.01312.201
24/08/2021,ZZH696057,1,8233,MGB Plastics Ltd,182020,Environmental Services Waste Management,Waste Management Equipment,Services to Place,Wheelie Bins,"7,728.00",400401,10864
24/08/2021,ZZH696057,2,8233,MGB Plastics Ltd,182020,Environmental Services Waste Management,Waste Management Equipment,Services to Place,Wheelie Bins,"7,168.00",400401,10864
24/08/2021,ZZH696091,1,3239,ARC,290000,Arts & Leisure Services  ,Publicity and Promotion,Services to Place,Arts Development,"21,000.00",401801,11384
24/08/2021,ZZH696094,1,1694,Network Rail Infras'ture Ltd,390000,Supplies and services,Supplies and services,#N/A,#N/A,"7,039.79",401600,C.01339.203
24/08/2021,ZZH696095,1,3529,Totally Local Company Ltd,390000,Supplies and services,Supplies and services,#N/A,#N/A,"6,980.00",401600,C.01451.203
24/08/2021,ZZH696098,1,7166,THE DARTINGTON HALL TRUST,150000,Consultancy   ,Professional Fees,Services to People,WD-ASC SW Developmen,"11,625.00",401020,11446
25/08/2021,ZZH696162,1,1342,UK Container Maintenance Ltd,182020,Environmental Services Waste Management,Waste Management Equipment,Services to Place,Bulk Container,"3,759.00",400401,10883
25/08/2021,ZZH696162,2,1342,UK Container Maintenance Ltd,182020,Environmental Services Waste Management,Waste Management Equipment,Services to Place,Bulk Container,"1,302.50",400401,10883
26/08/2021,ZZH696200,1,6748,GEORGE COX & SONS LTD,390000,Supplies and services,Supplies and services,Services to Place,Highway Structs R+R,"9,087.37",401600,11975
26/08/2021,ZZH696211,1,6748,GEORGE COX & SONS LTD,390000,Supplies and services,Supplies and services,Services to Place,Highway Structs R+R,"7,901.75",401600,11975
26/08/2021,ZZH696212,1,6748,GEORGE COX & SONS LTD,390000,Supplies and services,Supplies and services,Services to Place,Highway Structs R+R,"5,440.26",401600,11975
27/08/2021,ZZH696221,1,13624,Charles Andrews Ltd,390000,"Works - Construction, Repair & Maintenance  ",Repairs and Maintenance,Services to Place,Property Client Acct,"24,755.00",200123,12328
27/08/2021,ZZH696222,1,14098,Rider Levett Bucknall UK Limit,390000,"Works - Construction, Repair & Maintenance  ",Repairs and Maintenance,Services to Place,Property Client Acct,"14,700.00",200123,12328
27/08/2021,ZZH696230,1,3529,Totally Local Company Ltd,390000,"Works - Construction, Repair & Maintenance  ",Capital Expenditure - Works,#N/A,#N/A,"35,601.11",200304,C.01477.203
27/08/2021,ZZH696231,1,6748,GEORGE COX & SONS LTD,390000,Supplies and services,Supplies and services,Services to Place,Highway Structs R+R,"10,850.56",401600,11975
27/08/2021,ZZH696232,1,8106,Tarmac Trading Ltd,390000,Supplies and services,Supplies and services,#N/A,#N/A,"29,603.36",401600,C.01358.203
27/08/2021,ZZH696234,1,6748,GEORGE COX & SONS LTD,390000,Supplies and services,Supplies and services,#N/A,#N/A,"23,788.35",401600,C.01443.201
27/08/2021,ZZH696235,1,6748,GEORGE COX & SONS LTD,390000,Supplies and services,Supplies and services,Services to Place,Highway Structs R+R,"7,234.61",401600,11975
27/08/2021,ZZH696235,2,6748,GEORGE COX & SONS LTD,390000,Supplies and services,Supplies and services,#N/A,#N/A,"7,762.41",401600,C.01221.203
27/08/2021,ZZH696236,1,3529,Totally Local Company Ltd,390000,Supplies and services,Supplies and services,#N/A,#N/A,"7,358.40",401600,C.01368.203
27/08/2021,ZZH696238,1,757,Transport for Greater Manchest,230000,Highway Equipment & Materials�   ,Highways Maintenance,#N/A,#N/A,"43,000.00",202054,C.01369.203
01/09/2021,ZZH696351,1,7861,Stockport District CAB,150000,Consultancy   ,Professional Fees,Corporate and Support Services,"Info, Advice & Guide","72,500.00",401020,13006
01/09/2021,ZZH696368,1,3529,Totally Local Company Ltd,230000,Highway Equipment & Materials�   ,Highways Maintenance,#N/A,#N/A,"9,434.45",202050,C.01417.201
02/09/2021,ZZH696385,1,865,Bethell Construction Ltd,390000,Supplies and services,Supplies and services,#N/A,#N/A,"137,175.01",401600,C.01179.203
03/09/2021,ZZH696420,1,14261,MANUS REVIEW AND CONSULTING LI,150000,Consultancy   ,Professional Fees,Services to People,SA Board,"7,500.00",401020,12825
03/09/2021,ZZH696426,1,3529,Totally Local Company Ltd,240000,Horticultural  ,Grounds Maintenance,#N/A,#N/A,"15,381.67",202032,C.01451.203
03/09/2021,ZZH696427,1,3529,Totally Local Company Ltd,390000,Supplies and services,Supplies and services,#N/A,#N/A,"9,625.00",401600,C.01451.203
03/09/2021,ZZH696428,1,865,Bethell Construction Ltd,390000,Supplies and services,Supplies and services,#N/A,#N/A,"10,106.20",401600,C.01445.201
03/09/2021,ZZH696448,1,3529,Totally Local Company Ltd,130000,Cleaning & Janitorial  ,Cleaning,Services to Place,Contin Educ Service,"11,371.45",201602,10511
03/09/2021,ZZH696455,1,10161,Mark Hancock Ltd,150000,Consultancy   ,Professional Fees,Services to People,SEN Incl - Psycholog,"7,200.00",401007,10751
03/09/2021,ZZH696459,1,178,Trafford Council,999999,Third party payments - Public Sector,Third party payments - Public Sector,Corporate and Support Services,U-Probation Serv-Gen,"8,942.32",500303,10966
06/09/2021,ZZH696488,1,3529,Totally Local Company Ltd,230000,Highway Equipment & Materials�   ,Highways Maintenance,Services to Place,A6 Marr Maintenance,"5,160.00",202050,13039
06/09/2021,ZZH696490,1,6967,Wilde Consultants Ltd,150000,Consultancy   ,Professional Fees,#N/A,#N/A,"12,000.00",401020,C.01177
06/09/2021,ZZH696510,1,13473,PayPoint Network Ltd,#N/A,#N/A,#N/A,Services to People,COVID Winter Grant,"5,275.32",500999,13096
06/09/2021,ZZH696511,1,12180,Acorn Care and Education,261500,Human Resources Training & Conferences ,Fees and Charges,Services to People,SEN Independent Sch,"53,229.62",401024,10372
06/09/2021,ZZH696527,1,4083,Hulme Hall School,261500,Human Resources Training & Conferences ,Fees and Charges,Services to People,SEN Specific support,"8,649.00",401024,10300
06/09/2021,ZZH696528,1,14174,Newsquest Media Group,190000,Facilities & Management Services  ,Publicity and Promotion,Services to People,FP - Fostering Staff,"6,000.00",401800,11489
07/09/2021,ZZH696539,1,433,Mott MacDonald Ltd,150000,Consultancy   ,Professional Fees,Services to Place,MS Design Frnwk Staf,"35,000.00",401020,13107
07/09/2021,ZZH696544,1,8759,VAISALA  LTD,390000,"Works - Construction, Repair & Maintenance  ",Repairs and Maintenance,Services to Place,Gritting,"13,270.00",200123,12033
07/09/2021,ZZH696546,1,1694,Network Rail Infras'ture Ltd,230000,Highway Equipment & Materials�   ,Highways Maintenance,Services to Place,Passages Rail & Marr,"24,931.00",202050,11998
07/09/2021,ZZH696548,1,8106,Tarmac Trading Ltd,390000,Supplies and services,Supplies and services,#N/A,#N/A,"53,133.60",401600,C.01389.203
07/09/2021,ZZH696549,1,7820,GMCA - GMUTC,230000,Highway Equipment & Materials�   ,Highways Maintenance,#N/A,#N/A,"43,000.00",202054,C.01369.203
07/09/2021,ZZH696550,1,3529,Totally Local Company Ltd,390000,Supplies and services,Supplies and services,#N/A,#N/A,"9,713.82",401600,C.01369.203
07/09/2021,ZZH696555,1,12533,Priory Group - Northern Office,320000,Social Community Care Supplies & Services  ,Third party payments - Private/Voluntary Sector,Services to People,Top-up Fund Post 16,"67,093.74",402403,12724
07/09/2021,ZZH696570,1,7025,CBRE Limited,150000,Consultancy   ,Professional Fees,Services to Place,Redrock IE,"5,500.00",401020,12062
07/09/2021,ZZH696574,1,12978,Mills & Reeve LLP (office acco,150000,Consultancy   ,Professional Fees,#N/A,#N/A,"20,000.00",401020,C.10980.001
08/09/2021,ZZH696604,1,2927,XMA Ltd,270000,Information Communication Technology  ,Information and Communications Technology,Services to People,HTV CSC Locality Lea,"7,611.60",402001,11516
08/09/2021,ZZH696604,2,2927,XMA Ltd,270000,Information Communication Technology  ,Information and Communications Technology,Services to People,HTV CSC Locality Lea,28.00,402001,11516
08/09/2021,ZZH696604,3,2927,XMA Ltd,270000,Information Communication Technology  ,Information and Communications Technology,Services to People,HTV CSC Locality Lea,28.00,402001,11516
08/09/2021,ZZH696604,4,2927,XMA Ltd,270000,Information Communication Technology  ,Information and Communications Technology,Services to People,HTV CSC Locality Lea,99.28,402001,11516
08/09/2021,ZZH696604,5,2927,XMA Ltd,270000,Information Communication Technology  ,Information and Communications Technology,Services to People,HTV CSC Locality Lea,107.12,402001,11516
08/09/2021,ZZH696605,1,2927,XMA Ltd,270000,Information Communication Technology  ,Information and Communications Technology,Services to People,SHV CSC Locality Lea,"7,611.60",402001,11514
08/09/2021,ZZH696605,2,2927,XMA Ltd,270000,Information Communication Technology  ,Information and Communications Technology,Services to People,SHV CSC Locality Lea,28.00,402001,11514
08/09/2021,ZZH696605,3,2927,XMA Ltd,270000,Information Communication Technology  ,Information and Communications Technology,Services to People,SHV CSC Locality Lea,28.00,402001,11514
08/09/2021,ZZH696605,4,2927,XMA Ltd,270000,Information Communication Technology  ,Information and Communications Technology,Services to People,SHV CSC Locality Lea,99.28,402001,11514
08/09/2021,ZZH696605,5,2927,XMA Ltd,270000,Information Communication Technology  ,Information and Communications Technology,Services to People,SHV CSC Locality Lea,107.12,402001,11514
08/09/2021,ZZH696647,1,13860,Howard Lynn Property Ltd,261400,Human Resources Temporary & Agency Staff ,Agency Staff,Services to Place,Property Client Acct,"6,142.50",100290,12328
08/09/2021,ZZH696654,1,216,Manchester City Council,202000,Financial Services Rents ,Rents,Services to People,RAA Adoption Count,"99,000.00",200700,12957
08/09/2021,ZZH696655,1,10337,SIGNPOST STOCKPORT for CARERS,320000,Social Community Care Supplies & Services  ,Third party payments - Private/Voluntary Sector,Services to People,SC - Signpost,"163,761.00",500530,11419
09/09/2021,ZZH696675,1,6865,City B Group,#N/A,#N/A,#N/A,Services to Place,Investing in Growth,"7,550.00",400999,10102
09/09/2021,ZZH696679,1,757,Transport for Greater Manchest,170000,Education  ,Welfare Payments,Services to People,SS-FreeSclTrans-Pri,"151,320.00",530102,10429
09/09/2021,ZZH696679,2,757,Transport for Greater Manchest,170000,Education  ,Welfare Payments,Services to People,SS-FreeSclTrans-Sec,"3,783.00",530102,10430
09/09/2021,ZZH696692,1,9862,Jacobs Consulting Engineers,390000,Supplies and services,Supplies and services,Services to Place,Property Client Acct,"24,756.00",401600,12328
09/09/2021,ZZH696712,1,421,Bond Solon Training Ltd,260000,Human Resources  ,Staff Training,Services to People,CYP ASYE,"8,000.00",102020,12953
13/09/2021,ZZH696788,1,6748,GEORGE COX & SONS LTD,390000,Supplies and services,Supplies and services,#N/A,#N/A,"7,838.69",401600,C.01221.203
13/09/2021,ZZH696791,1,3529,Totally Local Company Ltd,390000,"Works - Construction, Repair & Maintenance  ",Capital Expenditure - Works,#N/A,#N/A,"11,089.47",200304,C.01312.203
13/09/2021,ZZH696793,1,13249,Viaduct Care CIC,260000,Human Resources  ,Other Payments,Services to People,Proactive Care,"70,647.00",100304,12829
13/09/2021,ZZH696794,1,10337,SIGNPOST STOCKPORT for CARERS,390000,Supplies and services,Supplies and services,Services to People,iBCF,"30,000.00",401600,13000
13/09/2021,ZZH696796,1,3529,Totally Local Company Ltd,390000,Supplies and services,Supplies and services,Services to Place,Special Project 9,"45,000.00",401600,11275
13/09/2021,ZZH696797,1,780,J A Jones + Sons,210000,Furniture & Soft Furnishings  ,Furniture and Equipment,Services to Place,Special Project 9,132.00,400115,11275
13/09/2021,ZZH696797,2,780,J A Jones + Sons,210000,Furniture & Soft Furnishings  ,Furniture and Equipment,Services to Place,Special Project 9,"2,070.00",400115,11275
13/09/2021,ZZH696797,3,780,J A Jones + Sons,210000,Furniture & Soft Furnishings  ,Furniture and Equipment,Services to Place,Special Project 9,"2,268.00",400115,11275
13/09/2021,ZZH696797,4,780,J A Jones + Sons,210000,Furniture & Soft Furnishings  ,Furniture and Equipment,Services to Place,Special Project 9,644.00,400115,11275
13/09/2021,ZZH696797,5,780,J A Jones + Sons,210000,Furniture & Soft Furnishings  ,Furniture and Equipment,Services to Place,Special Project 9,78.00,400115,11275
13/09/2021,ZZH696797,6,780,J A Jones + Sons,210000,Furniture & Soft Furnishings  ,Furniture and Equipment,Services to Place,Special Project 9,"1,170.00",400115,11275
13/09/2021,ZZH696797,7,780,J A Jones + Sons,210000,Furniture & Soft Furnishings  ,Furniture and Equipment,Services to Place,Special Project 9,"1,170.00",400115,11275
13/09/2021,ZZH696797,8,780,J A Jones + Sons,210000,Furniture & Soft Furnishings  ,Furniture and Equipment,Services to Place,Special Project 9,"1,140.00",400115,11275
13/09/2021,ZZH696797,9,780,J A Jones + Sons,210000,Furniture & Soft Furnishings  ,Furniture and Equipment,Services to Place,Special Project 9,864.00,400115,11275
13/09/2021,ZZH696797,10,780,J A Jones + Sons,210000,Furniture & Soft Furnishings  ,Furniture and Equipment,Services to Place,Special Project 9,148.00,400115,11275
13/09/2021,ZZH696815,1,10867,ABL Health Ltd,999999,Social Community Care Supplies & Services  ,Service Contract Payments,Services to People,PH - COMF Grant,"10,000.00",561704,13097
14/09/2021,ZZH696906,1,2927,XMA Ltd,270000,Information Communication Technology  ,Information and Communications Technology,Services to People,ITT Hospital SW,"5,093.12",402001,12994
14/09/2021,ZZH696906,2,2927,XMA Ltd,270000,Information Communication Technology  ,Information and Communications Technology,Services to People,ITT Hospital SW,28.00,402001,12994
14/09/2021,ZZH696906,3,2927,XMA Ltd,270000,Information Communication Technology  ,Information and Communications Technology,Services to People,ITT Hospital SW,28.00,402001,12994
14/09/2021,ZZH696906,4,2927,XMA Ltd,270000,Information Communication Technology  ,Information and Communications Technology,Services to People,ITT Hospital SW,99.28,402001,12994
14/09/2021,ZZH696910,1,14414,MEADOWS CARE LTD,261500,Human Resources Training & Conferences ,Fees and Charges,Services to People,SEN Independent Sch,"20,000.00",401024,10372
14/09/2021,ZZH696918,1,14768,John Mattocks Planning Service,150000,Consultancy   ,Professional Fees,Services to Place,Local Plan Project,"5,207.84",401007,12936
14/09/2021,ZZH696919,1,7517,Capita Business Services Ltd.,150000,Consultancy   ,Professional Fees,Services to Place,Local Plan Project,"8,500.00",401007,12936
15/09/2021,ZZH696940,1,14799,Frank Whittle Partnership Limi,390000,"Works - Construction, Repair & Maintenance  ",Repairs and Maintenance,Services to Place,Property Client Acct,"55,000.00",200123,12328
15/09/2021,ZZH696941,1,8733,ELF SOFTWARE LTD,270000,Information Communication Technology  ,Information and Communications Technology,Services to Place,Property Client Acct,"5,499.96",402001,12328
15/09/2021,ZZH696968,1,13495,Pell Frischmann Consultants Lt,150000,Consultancy   ,Professional Fees,Services to Place,MS Design Frnwk Staf,"23,400.00",401020,13107
15/09/2021,ZZH696969,1,14805,Raw Creative (Yorkshire) Ltd,#N/A,#N/A,#N/A,Services to Place,Investing in Growth,"20,000.00",400999,10102
15/09/2021,ZZH696976,1,14619,Constellia Public Limited,150000,Consultancy   ,Professional Fees,Services to Place,Culture & Leisure Mg,"13,950.00",401007,11386
15/09/2021,ZZH696983,1,82,Marwood Electrical Company Ltd,390000,"Works - Construction, Repair & Maintenance  ",Capital Expenditure - Works,#N/A,#N/A,"14,268.70",200304,C.01197.203
15/09/2021,ZZH696983,2,82,Marwood Electrical Company Ltd,390000,"Works - Construction, Repair & Maintenance  ",Capital Expenditure - Works,#N/A,#N/A,"4,339.45",200304,C.01197.203
15/09/2021,ZZH696983,3,82,Marwood Electrical Company Ltd,390000,"Works - Construction, Repair & Maintenance  ",Capital Expenditure - Works,#N/A,#N/A,"2,315.70",200304,C.01197.203
15/09/2021,ZZH696983,4,82,Marwood Electrical Company Ltd,390000,"Works - Construction, Repair & Maintenance  ",Capital Expenditure - Works,#N/A,#N/A,"3,387.42",200304,C.01197.203
15/09/2021,ZZH696983,5,82,Marwood Electrical Company Ltd,390000,"Works - Construction, Repair & Maintenance  ",Capital Expenditure - Works,#N/A,#N/A,"15,442.65",200304,C.01197.203
15/09/2021,ZZH696986,1,6116,Atkins Limited,150000,Consultancy   ,Professional Fees,Services to Place,Feasibility,"46,414.08",401020,13062
16/09/2021,ZZH696994,1,1339,Stockport NHS Foundation Trust,999999,Fees and Charges,Fees and Charges,Services to People,SNC,"5,711.94",402404,12929
16/09/2021,ZZH697024,1,11058,Stockport Town Centre Business,290000,Arts & Leisure Services  ,Publicity and Promotion,Services to Place,Economic Development,"15,000.00",401801,10103
16/09/2021,ZZH697030,1,10842,VENN GROUP,999999,UNCLASSIFIED  ,MISCLASSIFIED? CHECK BEFORE PUBLICATION,Corporate and Support Services,Legal Services,"45,000.00",100100,11117
16/09/2021,ZZH697035,1,2271,CADline Ltd,270000,Information Communication Technology  ,Information and Communications Technology,Services to Place,Property Client Acct,"16,515.00",402001,12328
17/09/2021,ZZH697060,1,3529,Totally Local Company Ltd,240000,Horticultural  ,Grounds Maintenance,Services to Place,Special Project 6,"30,223.20",202032,11272
20/09/2021,ZZH697072,1,11058,Stockport Town Centre Business,391114,"Works - Construction, Repair & Maintenance Buildings Surveys",Capital Expenditure - Fees,Services to Place,Directorate,"13,164.63",200316,10106
21/09/2021,ZZH697117,1,14792,Hatch Associates Ltd,150000,Consultancy   ,Professional Fees,Services to Place,Employment Initiativ,"62,080.00",401007,12775
21/09/2021,ZZH697138,1,1669,Charnwood Nursery,321115,Social Community Care Supplies & Services Children Childcare Services,Expenses and Allowances,Services to People,Early Years SEN,"24,500.00",402210,12942
21/09/2021,ZZH697138,1,1669,Charnwood Nursery,261500,Human Resources Training & Conferences ,Fees and Charges,Services to People,SEN Independent Sch,"182,000.00",401024,10372
21/09/2021,ZZH697139,1,1722,The Together Trust Centre,261500,Human Resources Training & Conferences ,Fees and Charges,Services to People,SEN NMSS School Fees,"64,311.09",401024,12710
21/09/2021,ZZH697140,1,1722,The Together Trust Centre,261500,Human Resources Training & Conferences ,Fees and Charges,Services to People,SEN NMSS School Fees,"75,450.00",401024,12710
21/09/2021,ZZH697141,1,1722,The Together Trust Centre,261500,Human Resources Training & Conferences ,Fees and Charges,Services to People,SEN NMSS School Fees,"75,450.00",401024,12710
21/09/2021,ZZH697142,1,1722,The Together Trust Centre,261500,Human Resources Training & Conferences ,Fees and Charges,Services to People,SEN NMSS School Fees,"69,504.00",401024,12710
21/09/2021,ZZH697143,1,1722,The Together Trust Centre,261500,Human Resources Training & Conferences ,Fees and Charges,Services to People,SEN NMSS School Fees,"69,504.00",401024,12710
21/09/2021,ZZH697154,1,8106,Tarmac Trading Ltd,390000,Supplies and services,Supplies and services,#N/A,#N/A,"29,895.58",401600,C.01369.203
21/09/2021,ZZH697179,1,13852,The Gift Voucher Shop UK Ltd,290000,Arts & Leisure Services  ,Publicity and Promotion,Services to People,SC - Leaving Care,"6,825.00",401801,11501
22/09/2021,ZZH697192,1,11058,Stockport Town Centre Business,150000,Consultancy   ,Professional Fees,#N/A,#N/A,"20,000.00",401007,C.01035.203
22/09/2021,ZZH697194,1,5214,WSP GROUP PLC,150000,Consultancy   ,Professional Fees,#N/A,#N/A,"15,263.00",401007,C.01313.201
22/09/2021,ZZH697201,1,1816,Seashell Trust,150000,Consultancy   ,Professional Fees,Services to People,PH-Local Pilot,"22,207.65",401020,13047
22/09/2021,ZZH697202,1,1104,Age UK Stockport,150000,Consultancy   ,Professional Fees,Services to People,PH-Local Pilot,"13,221.50",401020,13047
22/09/2021,ZZH697203,1,628,Life Leisure,150000,Consultancy   ,Professional Fees,Services to People,PH-Local Pilot,"17,909.03",401020,13047
22/09/2021,ZZH697220,1,1697,David Lewis Centre,320000,Social Community Care Supplies & Services  ,Third party payments - Private/Voluntary Sector,Services to People,Top-up Fund Post 16,"64,998.99",402403,12724
22/09/2021,ZZH697221,1,2978,Teaching Personnel Ltd,320000,Social Community Care Supplies & Services  ,Third party payments - Private/Voluntary Sector,Services to People,Top-up Fund Post 16,"28,170.16",402403,12724
22/09/2021,ZZH697236,1,3529,Totally Local Company Ltd,390000,Supplies and services,Supplies and services,#N/A,#N/A,"6,726.50",401600,C.01321.203
23/09/2021,ZZH697255,1,14243,Keys PCE Ltd,261500,Human Resources Training & Conferences ,Fees and Charges,Services to People,SEN Independent Sch,"23,546.25",401024,10372
23/09/2021,ZZH697256,1,14243,Keys PCE Ltd,261500,Human Resources Training & Conferences ,Fees and Charges,Services to People,SEN Independent Sch,"23,546.25",401024,10372
23/09/2021,ZZH697257,1,14243,Keys PCE Ltd,261500,Human Resources Training & Conferences ,Fees and Charges,Services to People,SEN Independent Sch,"23,546.25",401024,10372
23/09/2021,ZZH697258,1,1722,The Together Trust Centre,261500,Human Resources Training & Conferences ,Fees and Charges,Services to People,SEN Independent Sch,"27,089.56",401024,10372
23/09/2021,ZZH697259,1,14243,Keys PCE Ltd,261500,Human Resources Training & Conferences ,Fees and Charges,Services to People,SEN Independent Sch,"23,205.00",401024,10372
23/09/2021,ZZH697261,1,14243,Keys PCE Ltd,261500,Human Resources Training & Conferences ,Fees and Charges,Services to People,SEN Independent Sch,"23,205.00",401024,10372
23/09/2021,ZZH697271,1,14057,Atelier Rehab Ltd,181800,Environmental Services Technical Equipment ,Furniture and Equipment,Services to People,SEN Equipment,"1,762.00",400110,10324
23/09/2021,ZZH697271,2,14057,Atelier Rehab Ltd,181800,Environmental Services Technical Equipment ,Furniture and Equipment,Services to People,SEN Equipment,86.00,400110,10324
23/09/2021,ZZH697271,3,14057,Atelier Rehab Ltd,181800,Environmental Services Technical Equipment ,Furniture and Equipment,Services to People,SEN Equipment,144.00,400110,10324
23/09/2021,ZZH697271,4,14057,Atelier Rehab Ltd,181800,Environmental Services Technical Equipment ,Furniture and Equipment,Services to People,SEN Equipment,169.00,400110,10324
23/09/2021,ZZH697271,5,14057,Atelier Rehab Ltd,181800,Environmental Services Technical Equipment ,Furniture and Equipment,Services to People,SEN Equipment,985.00,400110,10324
23/09/2021,ZZH697271,6,14057,Atelier Rehab Ltd,181800,Environmental Services Technical Equipment ,Furniture and Equipment,Services to People,SEN Equipment,"1,142.00",400110,10324
23/09/2021,ZZH697271,7,14057,Atelier Rehab Ltd,181800,Environmental Services Technical Equipment ,Furniture and Equipment,Services to People,SEN Equipment,260.00,400110,10324
23/09/2021,ZZH697271,8,14057,Atelier Rehab Ltd,181800,Environmental Services Technical Equipment ,Furniture and Equipment,Services to People,SEN Equipment,755.00,400110,10324
23/09/2021,ZZH697271,9,14057,Atelier Rehab Ltd,181800,Environmental Services Technical Equipment ,Furniture and Equipment,Services to People,SEN Equipment,174.00,400110,10324
23/09/2021,ZZH697271,10,14057,Atelier Rehab Ltd,181800,Environmental Services Technical Equipment ,Furniture and Equipment,Services to People,SEN Equipment,36.00,400110,10324
23/09/2021,ZZH697271,11,14057,Atelier Rehab Ltd,181800,Environmental Services Technical Equipment ,Furniture and Equipment,Services to People,SEN Equipment,110.00,400110,10324
23/09/2021,ZZH697271,12,14057,Atelier Rehab Ltd,181800,Environmental Services Technical Equipment ,Furniture and Equipment,Services to People,SEN Equipment,292.00,400110,10324
23/09/2021,ZZH697271,13,14057,Atelier Rehab Ltd,181800,Environmental Services Technical Equipment ,Furniture and Equipment,Services to People,SEN Equipment,566.00,400110,10324
23/09/2021,ZZH697271,14,14057,Atelier Rehab Ltd,181800,Environmental Services Technical Equipment ,Furniture and Equipment,Services to People,SEN Equipment,114.00,400110,10324
23/09/2021,ZZH697271,15,14057,Atelier Rehab Ltd,181800,Environmental Services Technical Equipment ,Furniture and Equipment,Services to People,SEN Equipment,293.00,400110,10324
23/09/2021,ZZH697271,16,14057,Atelier Rehab Ltd,181800,Environmental Services Technical Equipment ,Furniture and Equipment,Services to People,SEN Equipment,122.00,400110,10324
23/09/2021,ZZH697271,17,14057,Atelier Rehab Ltd,181800,Environmental Services Technical Equipment ,Furniture and Equipment,Services to People,SEN Equipment,54.00,400110,10324
23/09/2021,ZZH697271,18,14057,Atelier Rehab Ltd,181800,Environmental Services Technical Equipment ,Furniture and Equipment,Services to People,SEN Equipment,44.00,400110,10324
23/09/2021,ZZH697282,1,14817,Mr Robert Lassey,150000,Consultancy   ,Professional Fees,Corporate and Support Services,Legal Fees Budget,"7,450.00",401020,12271
24/09/2021,ZZH697328,1,2927,XMA Ltd,270000,Information Communication Technology  ,Information and Communications Technology,Services to People,CADA grant,"2,855.60",402001,13032
24/09/2021,ZZH697328,2,2927,XMA Ltd,270000,Information Communication Technology  ,Information and Communications Technology,Services to People,CADA grant,"3,622.32",402001,13032
24/09/2021,ZZH697353,1,1722,The Together Trust Centre,320000,Social Community Care Supplies & Services  ,Third party payments - Private/Voluntary Sector,Services to People,Top-up Fund Post 16,"63,700.29",402403,12724
24/09/2021,ZZH697354,1,14595,The Growth Company,320000,Social Community Care Supplies & Services  ,Third party payments - Private/Voluntary Sector,Services to People,Top-up Fund Post 16,"17,088.00",402403,12724
27/09/2021,ZZH697405,1,13415,Matthew Hatton,290000,Arts & Leisure Services  ,Publicity and Promotion,Services to People,GMCA CS Grant,"5,800.00",401801,11505
28/09/2021,ZZH697415,1,12608,Liquidlogic Limited,150000,Consultancy   ,Professional Fees,Services to People,AOM costs,"22,325.00",401007,11878
28/09/2021,ZZH697415,2,12608,Liquidlogic Limited,150000,Consultancy   ,Professional Fees,Services to People,AOM costs,"24,525.00",401007,11878
28/09/2021,ZZH697425,1,10615,Mosaic Event Catering Limited,110000,Catering  ,Catering Supplies,Corporate and Support Services,Town Hall Events,"5,421.49",400420,11375
28/09/2021,ZZH697456,1,12675,Tiptoes Child Therapy Services,150000,Consultancy   ,Professional Fees,Services to People,SHV CSC Locality Lea,"6,075.00",401007,11514
29/09/2021,ZZH697474,1,10985,Broadstones School Ltd,320000,Social Community Care Supplies & Services  ,Third party payments - Private/Voluntary Sector,Services to People,Top-up Fund Post 16,"20,529.99",402403,12724
30/09/2021,ZZH697514,1,3529,Totally Local Company Ltd,390000,Supplies and services,Supplies and services,#N/A,#N/A,"5,482.27",401600,C.01321.203
30/09/2021,ZZH697529,1,14031,Optimised Environments Limited,150000,Consultancy   ,Professional Fees,Services to Place,Town Centre Devt Tea,"6,500.00",401020,10072
30/09/2021,ZZH697548,1,9981,Loreto Sixth Form College,320000,Social Community Care Supplies & Services  ,Third party payments - Private/Voluntary Sector,Services to People,Top-up Fund Post 16,"22,486.00",402403,12724
30/09/2021,ZZH697552,1,9149,Public-i,#N/A,#N/A,#N/A,Corporate and Support Services,Members Services,"6,259.00",400999,11111
23/08/2021,ZZP696008,1,11041,P Casey (Enviro) Ltd,240000,Horticultural  ,Grounds Maintenance,#N/A,#N/A,"136,227.80",202032,C.10365.184
24/08/2021,ZZP696067,1,14782,Draft Fabrications Limited,390000,"Works - Construction, Repair & Maintenance  ",Repairs and Maintenance,#N/A,#N/A,"10,600.00",200155,C.11502.128
09/09/2021,ZZP696694,1,683,AECOM Limited,391114,"Works - Construction, Repair & Maintenance Buildings Surveys",Capital Expenditure - Fees,#N/A,#N/A,"6,871.00",200316,C.10335.118
24/09/2021,ZZP697352,1,5788,DESIGNED ROOF SYSTEMS LTD,390000,"Works - Construction, Repair & Maintenance  ",Repairs and Maintenance,#N/A,#N/A,"5,000.00",200127,C.10523.193
07/07/2021,ZZS694170,1,4272,Civica UK Ltd,270000,Information Communication Technology  ,Information and Communications Technology,Corporate and Support Services,U-Coroners Ct-Genera,"6,375.00",402001,10965
